[Event "EYCC Girls-U12 2019"]
[Site "Bratislava"]
[Date "2019.08.02"]
[Round "1.23"]
[White "Misiuk, Monika"]
[Black "Nordquelle, Amelia"]
[Result "1-0"]
[ECO "D46"]
[WhiteElo "1419"]
[BlackElo "1648"]
[Annotator "NA"]
[PlyCount "83"]
[EventDate "2019.08.02"]
[EventType "swiss"]
[EventCountry "SVK"]
[SourceTitle "playchess.com"]
[Source "ChessBase"]
[SourceQuality "1"]
[TimeControl "40/5400+30:1800+30"]

1. d4 {[%emt 0:00:00]} d5 {[%emt 0:00:57]} 2. c4 {[%emt 0:00:00]} c6 {[%emt 0:00:17]} 3. Nc3 {[%emt 0:00:14]} Nf6 {[%emt 0:01:12]} 4. e3 {[%emt 0:00:45]} e6 {[%emt 0:00:46]} 5. Nf3 {[%emt 0:01:19]} Be7 {[%emt 0:01:25]} 6. Bd3 {[%emt 0:02:01]} Nbd7 {[%emt 0:02:47]} 7. O-O {[%emt 0:04:12]} O-O {[%emt 0:01:49]} 8. e4 {[%emt 0:03:00]} dxe4 {[%emt 0:01:02]} 9. Nxe4 {[%emt 0:00:18]} b6 {[%emt 0:04:21]} 10. Bg5 {[%emt 0:08:54]} Bb7 {[%emt 0:02:38]} 11. Qc2 {[%emt 0:22:38]} h6 {[%emt 0:00:45]} 12. Bf4 {[%emt 0:02:32]} c5 {[%emt 0:01:47]} 13. dxc5 {[%emt 0:07:00]} Nxc5 {[%emt 0:03:27]} 14. Nxc5 {[%emt 0:02:36]} Bxc5 {[%emt 0:01:55]} 15. Rfd1 {[%emt 0:02:54]} Qe7 {[%emt 0:02:16]} 16. Ne5 {[%emt 0:01:56]} Rac8 {[%emt 0:07:27]} 17. Rac1 {[%emt 0:02:47]} Rfd8 {[%emt 0:07:34]} 18. Qe2 {[%emt 0:03:43]} Nd7 {[%emt 0:11:49]} 19. Nf3 {[%emt 0:02:18]} e5 {[%emt 0:08:57]} 20. Nxe5 {[%emt 0:04:41]} Re8 {[%emt 0:08:03]} 21. Bh7+ {[%emt 0:04:04]} Kxh7 {[%emt 0:03:20]} 22. Qd3+ {[%emt 0:01:47]} Kg8 {[%emt 0:04:21]} 23. Qxd7 {[%emt 0:02:08]} Qf6 {[%emt 0:07:05]} 24. Qxb7 {[%emt 0:03:40]} Qxf4 {[%emt 0:09:01]} 25. Nd3 {[%emt 0:02:38]} Rc7 {[%emt 0:01:05]} 26. Qd5 {[%emt 0:02:25]} Qf6 {[%emt 0:02:15]} 27. Nxc5 {[%emt 0:01:14]} Rxc5 {[%emt 0:00:08]} 28. Qd2 {[%emt 0:01:02]} Re4 {[%emt 0:00:32]} 29. b3 {[%emt 0:01:22]} Rc8 {[%emt 0:04:17]} 30. f3 {[%emt 0:01:37]} Re5 {[%emt 0:00:48]} 31. Re1 {[%emt 0:07:18]} Rg5 {[%emt 0:00:38]} 32. f4 {[%emt 0:00:34]} Rg6 {[%emt 0:00:34]} 33. Qd7 {[%emt 0:00:30]} Rc5 {[%emt 0:00:21]} 34. Re8+ {[%emt 0:00:32]} Kh7 {[%emt 0:00:10]} 35. Rf1 {[%emt 0:00:37]} Qb2 {[%emt 0:00:54]} 36. g3 {[%emt 0:00:36]} Rh5 {[%emt 0:00:24]} 37. Rf2 Qc1+ {[%emt 0:00:49]} 38. Kg2 {[%emt 0:00:29]} Rxg3+ {[%emt 0:00:28]} 39. Kxg3 {[%emt 0:00:12]} Qc3+ {[%emt 0:00:10]} 40. Rf3 {[%emt 0:00:00]} Qc2 {[%emt 0:00:00]} 41. h3 {[%emt 0:02:27]} Qb1 {[%emt 0:04:43]} 42. Qd3+ {[%emt 0:02:10]} 1-0

[Event "EYCC Girls-U12 2019"]
[Site "Bratislava"]
[Date "2019.08.02"]
[Round "1.24"]
[White "Kapicakova, Lucia"]
[Black "Sargsyan, Lilit G."]
[Result "0-1"]
[ECO "A05"]
[WhiteElo "1671"]
[BlackElo "1415"]
[Annotator "NA"]
[PlyCount "138"]
[EventDate "2019.08.02"]
[EventType "swiss"]
[EventCountry "SVK"]
[SourceTitle "playchess.com"]
[Source "ChessBase"]
[SourceQuality "1"]
[TimeControl "40/5400+30:1800+30"]

1. Nf3 {[%emt 0:00:00]} Nf6 {[%emt 0:00:00]} 2. g3 {[%emt 0:00:00]} g6 {[%emt 0:00:00]} 3. b3 {[%emt 0:00:00]} Bg7 {[%emt 0:00:04]} 4. Bb2 {[%emt 0:00:00]} d6 {[%emt 0:00:16]} 5. d4 {[%emt 0:00:26]} O-O {[%emt 0:00:27]} 6. Bg2 {[%emt 0:00:54]} c5 {[%emt 0:02:11]} 7. c4 {[%emt 0:03:09]} Nbd7 {[%emt 0:02:55]} 8. O-O {[%emt 0:02:51]} a6 {[%emt 0:05:16]} 9. Qc2 {[%emt 0:03:23]} Rb8 {[%emt 0:02:07]} 10. Nbd2 {[%emt 0:07:43]} b5 {[%emt 0:03:39]} 11. Rad1 {[%emt 0:04:19]} Qa5 {[%emt 0:09:20]} 12. Bc3 {[%emt 0:07:14]} Qb6 {[%emt 0:01:34]} 13. d5 {[%emt 0:02:56]} a5 {[%emt 0:09:44]} 14. e4 {[%emt 0:08:14]} Ba6 {[%emt 0:11:58]} 15. h3 {[%emt 0:07:18]} a4 {[%emt 0:06:21]} 16. Nh2 {[%emt 0:08:55]} axb3 {[%emt 0:06:58]} 17. axb3 {[%emt 0:00:49]} bxc4 {[%emt 0:00:39]} 18. bxc4 {[%emt 0:00:27]} Ne5 {[%emt 0:00:57]} 19. Rb1 {[%emt 0:09:15]} Qc7 {[%emt 0:01:10]} 20. Bxe5 {[%emt 0:05:18]} dxe5 {[%emt 0:03:04]} 21. Qc3 {[%emt 0:05:56]} Nd7 {[%emt 0:02:28]} 22. Ra1 {[%emt 0:04:12]} Qd6 {[%emt 0:02:08]} 23. Ra5 {[%emt 0:02:24]} Rb4 {[%emt 0:03:29]} 24. Rfa1 {[%emt 0:01:27]} Bb7 {[%emt 0:01:20]} 25. Rb1 {[%emt 0:05:08]} Nb6 {[%emt 0:04:31]} 26. Rxb4 {[%emt 0:02:48]} cxb4 {[%emt 0:00:11]} 27. Qb3 {[%emt 0:01:04]} Rc8 {[%emt 0:00:35]} 28. Rb5 {[%emt 0:01:34]} Ba6 {[%emt 0:01:42]} 29. Rxb4 {[%emt 0:01:05]} Nd7 {[%emt 0:03:19]} 30. Bf1 {[%emt 0:01:37]} Nc5 {[%emt 0:00:37]} 31. Qb1 {[%emt 0:00:46]} Bh6 {[%emt 0:01:10]} 32. Nb3 {[%emt 0:01:00]} Nxe4 {[%emt 0:02:04]} 33. c5 {[%emt 0:01:26]} Nxc5 {[%emt 0:00:27]} 34. Nxc5 {[%emt 0:00:34]} Bxf1 {[%emt 0:05:46]} 35. Nb7 {[%emt 0:00:42]} Qa6 {[%emt 0:00:33]} 36. Rb6 {[%emt 0:02:16]} Qe2 {[%emt 0:01:01]} 37. Nxf1 {[%emt 0:00:37]} Rc1 {[%emt 0:00:34]} 38. Qxc1 {[%emt 0:00:35]} Bxc1 {[%emt 0:00:08]} 39. Rc6 {[%emt 0:00:25]} Ba3 {[%emt 0:00:45]} 40. Rc8+ {[%emt 0:00:00]} Kg7 {[%emt 0:00:00]} 41. Ne3 {[%emt 0:06:05]} Qb5 {[%emt 0:01:41]} 42. Nd8 {[%emt 0:01:39]} Qd7 {[%emt 0:00:43]} 43. Rb8 {[%emt 0:04:35]} Bc5 {[%emt 0:02:43]} 44. Nc6 {[%emt 0:01:33]} Bxe3 {[%emt 0:03:54]} 45. fxe3 {[%emt 0:01:12]} Qxh3 {[%emt 0:06:18]} 46. Kf2 {[%emt 0:09:20]} e4 {[%emt 0:04:22]} 47. Nxe7 {[%emt 0:03:59]} Qd7 {[%emt 0:05:41]} 48. Nc6 {[%emt 0:01:13]} Qxd5 {[%emt 0:03:43]} 49. Nd4 {[%emt 0:00:26]} Qa2+ {[%emt 0:00:46]} 50. Ne2 {[%emt 0:00:53]} Qe6 {[%emt 0:00:53]} 51. Nf4 {[%emt 0:01:13]} Qf5 {[%emt 0:00:36]} 52. Kg2 {[%emt 0:02:08]} g5 {[%emt 0:00:42]} 53. Nh3 {[%emt 0:00:48]} Qf3+ {[%emt 0:00:25]} 54. Kh2 {[%emt 0:00:25]} Qxe3 {[%emt 0:00:39]} 55. Rb2 {[%emt 0:00:51]} h6 {[%emt 0:00:24]} 56. Ng1 {[%emt 0:00:54]} Kg6 {[%emt 0:01:16]} 57. Kg2 {[%emt 0:00:36]} Kh5 {[%emt 0:00:47]} 58. Rb5 {[%emt 0:01:27]} Kg4 {[%emt 0:00:47]} 59. Rb2 {[%emt 0:00:49]} Qxg3+ {[%emt 0:00:12]} 60. Kf1 {[%emt 0:00:26]} Qd3+ {[%emt 0:00:10]} 61. Re2 {[%emt 0:00:34]} f5 {[%emt 0:00:24]} 62. Ke1 {[%emt 0:00:28]} f4 {[%emt 0:00:29]} 63. Rg2+ {[%emt 0:00:28]} Kf5 {[%emt 0:00:06]} 64. Rd2 {[%emt 0:00:34]} Qe3+ {[%emt 0:00:15]} 65. Ne2 {[%emt 0:00:32]} f3 {[%emt 0:00:07]} 66. Rd5+ {[%emt 0:00:26]} Kg4 {[%emt 0:00:10]} 67. Rd2 {[%emt 0:00:30]} fxe2 {[%emt 0:00:17]} 68. Rxe2 {[%emt 0:00:33]} Qxe2+ {[%emt 0:00:18]} 69. Kxe2 {[%emt 0:00:06]} Kf4 {[%emt 0:00:03]} 0-1

[Event "EYCC Girls-U12 2019"]
[Site "Bratislava"]
[Date "2019.08.03"]
[Round "2.1"]
[White "Tsirekidze, Barbare"]
[Black "Mikheeva, Galina"]
[Result "1/2-1/2"]
[ECO "E04"]
[WhiteElo "1527"]
[BlackElo "1792"]
[Annotator "NA"]
[PlyCount "82"]
[EventDate "2019.08.02"]
[EventType "swiss"]
[EventCountry "SVK"]
[SourceTitle "playchess.com"]
[Source "ChessBase"]
[SourceQuality "1"]
[TimeControl "40/5400+30:1800+30"]

1. d4 {[%emt 0:00:00]} Nf6 {[%emt 0:00:00]} 2. c4 {[%emt 0:00:00]} e6 {[%emt 0:00:00]} 3. Nf3 {[%emt 0:00:00]} d5 {[%emt 0:00:28]} 4. g3 {[%emt 0:00:04]} dxc4 {[%emt 0:01:32]} 5. Bg2 {[%emt 0:00:43]} Nc6 {[%emt 0:12:37]} 6. O-O {[%emt 0:01:35]} Be7 {[%emt 0:02:44]} 7. e3 {[%emt 0:03:27]} O-O {[%emt 0:01:29]} 8. Nfd2 {[%emt 0:01:54]} Na5 {[%emt 0:04:27]} 9. Qc2 {[%emt 0:02:28]} c5 {[%emt 0:03:46]} 10. dxc5 {[%emt 0:09:13]} Bxc5 {[%emt 0:03:31]} 11. Nxc4 {[%emt 0:01:46]} Nxc4 {[%emt 0:10:14]} 12. Qxc4 {[%emt 0:00:12]} Qe7 {[%emt 0:01:53]} 13. Nc3 {[%emt 0:01:45]} e5 {[%emt 0:02:28]} 14. Nd5 {[%emt 0:20:17]} Nxd5 {[%emt 0:01:13]} 15. Bxd5 {[%emt 0:01:55]} Bh3 {[%emt 0:06:06]} 16. Bg2 {[%emt 0:02:40]} Bxg2 {[%emt 0:00:12]} 17. Kxg2 {[%emt 0:00:06]} Rac8 {[%emt 0:05:17]} 18. Qe2 {[%emt 0:02:58]} Rfd8 {[%emt 0:08:10]} 19. Bd2 {[%emt 0:01:55]} g6 {[%emt 0:08:49]} 20. Bc3 {[%emt 0:01:00]} Bb4 {[%emt 0:01:20]} 21. Bxb4 {[%emt 0:01:42]} Qxb4 {[%emt 0:07:22]} 22. Rfd1 {[%emt 0:06:18]} Kg7 {[%emt 0:06:07]} 23. b3 {[%emt 0:11:38]} a6 {[%emt 0:02:50]} 24. Rxd8 {[%emt 0:02:53]} Rxd8 {[%emt 0:00:11]} 25. Rd1 {[%emt 0:00:30]} Rxd1 {[%emt 0:03:22]} 26. Qxd1 {[%emt 0:00:08]} Qe4+ {[%emt 0:00:52]} 27. Qf3 {[%emt 0:00:37]} Qxf3+ {[%emt 0:02:19]} 28. Kxf3 {[%emt 0:00:07]} Kf6 {[%emt 0:00:02]} 29. Ke4 {[%emt 0:00:14]} Ke6 {[%emt 0:00:05]} 30. Kd3 {[%emt 0:01:54]} Kd5 {[%emt 0:00:33]} 31. f4 {[%emt 0:12:41]} exf4 {[%emt 0:01:51]} 32. exf4 {[%emt 0:00:52]} f5 {[%emt 0:00:03]} 33. b4 {[%emt 0:05:39]} b6 {[%emt 0:01:16]} 34. a4 {[%emt 0:00:23]} a5 {[%emt 0:00:30]} 35. b5 {[%emt 0:06:25]} Kc5 {[%emt 0:00:12]} 36. Kc3 {[%emt 0:00:08]} h6 {[%emt 0:01:00]} 37. h3 {[%emt 0:00:05]} Kd5 {[%emt 0:00:27]} 38. Kd3 {[%emt 0:00:06]} Kc5 {[%emt 0:00:24]} 39. Kc3 {[%emt 0:00:12]} Kd5 {[%emt 0:00:30]} 40. Kd3 {[%emt 0:00:00]} Kc5 {[%emt 0:00:00]} 41. Kc3 {[%emt 0:00:12]} Kd5 {[%emt 0:12:05]} 1/2-1/2

[Event "EYCC Girls-U12 2019"]
[Site "Bratislava"]
[Date "2019.08.03"]
[Round "2.2"]
[White "Shvedova, Alexandra"]
[Black "Helliesen, Lykke-Merlot"]
[Result "1-0"]
[ECO "C64"]
[WhiteElo "1932"]
[BlackElo "1505"]
[Annotator "NA"]
[PlyCount "51"]
[EventDate "2019.08.02"]
[EventType "swiss"]
[EventCountry "SVK"]
[SourceTitle "playchess.com"]
[Source "ChessBase"]
[SourceQuality "1"]
[TimeControl "40/5400+30:1800+30"]

1. e4 {[%emt 0:00:00]} e5 {[%emt 0:00:00]} 2. Nf3 {[%emt 0:00:00]} Nc6 {[%emt 0:00:00]} 3. Bb5 {[%emt 0:00:00]} Bc5 {[%emt 0:00:00]} 4. c3 {[%emt 0:00:00]} Nf6 {[%emt 0:00:50]} 5. d4 {[%emt 0:00:02]} exd4 {[%emt 0:00:51]} 6. e5 {[%emt 0:00:04]} Nd5 {[%emt 0:05:38]} 7. O-O {[%emt 0:00:31]} O-O {[%emt 0:02:19]} 8. cxd4 {[%emt 0:00:05]} Bb6 {[%emt 0:02:06]} 9. Bc4 {[%emt 0:00:52]} Nce7 {[%emt 0:04:16]} 10. Bg5 {[%emt 0:01:15]} c6 {[%emt 0:00:44]} 11. Bxd5 {[%emt 0:01:54]} cxd5 {[%emt 0:00:09]} 12. Nc3 {[%emt 0:00:03]} f6 {[%emt 0:03:13]} 13. exf6 {[%emt 0:00:40]} gxf6 {[%emt 0:00:44]} 14. Bh6 {[%emt 0:00:27]} Rf7 {[%emt 0:03:49]} 15. Qb3 {[%emt 0:05:49]} d6 {[%emt 0:10:21]} 16. Nxd5 {[%emt 0:00:18]} Be6 {[%emt 0:03:49]} 17. Nxe7+ {[%emt 0:00:05]} Rxe7 {[%emt 0:01:05]} 18. d5 {[%emt 0:01:24]} Bf7 {[%emt 0:02:12]} 19. Nh4 {[%emt 0:02:31]} Kh8 {[%emt 0:04:38]} 20. Qg3 {[%emt 0:03:03]} Bg6 {[%emt 0:10:05]} 21. Nxg6+ {[%emt 0:00:06]} hxg6 {[%emt 0:00:19]} 22. Qxg6 {[%emt 0:00:05]} Bd4 {[%emt 0:08:01]} 23. Rad1 {[%emt 0:16:33]} Bxb2 {[%emt 0:06:43]} 24. Rd2 {[%emt 0:00:07]} Bc3 {[%emt 0:01:04]} 25. Rd3 {[%emt 0:00:08]} Bb2 {[%emt 0:03:11]} 26. Rh3 {[%emt 0:00:11]} 1-0

[Event "EYCC Girls-U12 2019"]
[Site "Bratislava"]
[Date "2019.08.03"]
[Round "2.3"]
[White "Chicarosie, Ioana-Bianca"]
[Black "Manko, Mariya"]
[Result "1/2-1/2"]
[ECO "A45"]
[WhiteElo "1580"]
[BlackElo "1807"]
[Annotator "NA"]
[PlyCount "78"]
[EventDate "2019.08.02"]
[EventType "swiss"]
[EventCountry "SVK"]
[SourceTitle "playchess.com"]
[Source "ChessBase"]
[SourceQuality "1"]
[TimeControl "40/5400+30:1800+30"]

1. d4 {[%emt 0:00:00]} Nf6 {[%emt 0:00:00]} 2. Nd2 {[%emt 0:00:13]} c5 {[%emt 0:00:23]} 3. c3 {[%emt 0:03:24]} cxd4 {[%emt 0:02:03]} 4. cxd4 {[%emt 0:00:11]} d5 {[%emt 0:00:22]} 5. Ngf3 {[%emt 0:02:31]} g6 {[%emt 0:00:15]} 6. e3 {[%emt 0:02:59]} Bg7 {[%emt 0:00:22]} 7. Bd3 {[%emt 0:02:00]} O-O {[%emt 0:01:18]} 8. O-O {[%emt 0:00:48]} Nc6 {[%emt 0:01:32]} 9. a3 {[%emt 0:07:14]} a5 {[%emt 0:09:31]} 10. b3 {[%emt 0:05:49]} b6 {[%emt 0:00:51]} 11. Bb2 {[%emt 0:02:51]} Ba6 {[%emt 0:01:50]} 12. Bxa6 {[%emt 0:06:09]} Rxa6 {[%emt 0:01:14]} 13. Rc1 {[%emt 0:01:25]} b5 {[%emt 0:07:56]} 14. Qe2 {[%emt 0:01:08]} Qb6 {[%emt 0:03:20]} 15. Rc5 {[%emt 0:03:48]} Rb8 {[%emt 0:00:25]} 16. Rfc1 {[%emt 0:03:55]} Qb7 {[%emt 0:00:38]} 17. Ne5 {[%emt 0:05:24]} Nxe5 {[%emt 0:04:44]} 18. dxe5 {[%emt 0:00:24]} Ne8 {[%emt 0:00:12]} 19. Qd3 {[%emt 0:03:23]} e6 {[%emt 0:02:47]} 20. Qc2 {[%emt 0:02:15]} Bf8 {[%emt 0:05:20]} 21. Rc8 {[%emt 0:04:34]} Raa8 {[%emt 0:01:06]} 22. Rc6 {[%emt 0:01:13]} Ra6 {[%emt 0:03:30]} 23. Nf3 {[%emt 0:13:01]} Bg7 {[%emt 0:05:24]} 24. Bd4 {[%emt 0:03:57]} Bf8 {[%emt 0:04:25]} 25. Bb2 {[%emt 0:00:34]} Bg7 {[%emt 0:00:14]} 26. Ne1 {[%emt 0:01:33]} a4 {[%emt 0:17:53]} 27. b4 {[%emt 0:01:26]} Rxc6 {[%emt 0:01:47]} 28. Qxc6 {[%emt 0:00:11]} Qxc6 {[%emt 0:00:16]} 29. Rxc6 {[%emt 0:00:08]} Kf8 {[%emt 0:00:30]} 30. Nd3 {[%emt 0:09:35]} Ke7 {[%emt 0:00:58]} 31. Nc5 {[%emt 0:01:43]} Kd8 {[%emt 0:01:33]} 32. f4 {[%emt 0:01:08]} Bf8 {[%emt 0:00:52]} 33. Bd4 {[%emt 0:01:48]} h5 {[%emt 0:06:04]} 34. Na6 {[%emt 0:02:19]} Rb7 {[%emt 0:01:29]} 35. Nc5 {[%emt 0:01:10]} Rb8 {[%emt 0:00:12]} 36. Na6 {[%emt 0:00:14]} Rb7 {[%emt 0:00:06]} 37. Nc5 {[%emt 0:00:05]} Rb8 {[%emt 0:00:29]} 38. Na6 {[%emt 0:00:36]} Rb7 {[%emt 0:00:21]} 39. Nc5 {[%emt 0:00:53]} Rb8 {[%emt 0:00:07]} 1/2-1/2

[Event "EYCC Girls-U12 2019"]
[Site "Bratislava"]
[Date "2019.08.03"]
[Round "2.4"]
[White "Karmanova, Olga Dm."]
[Black "Suarez Gomez, Paula"]
[Result "1-0"]
[ECO "E06"]
[WhiteElo "1838"]
[BlackElo "1438"]
[Annotator "NA"]
[PlyCount "119"]
[EventDate "2019.08.02"]
[EventType "swiss"]
[EventCountry "SVK"]
[SourceTitle "playchess.com"]
[Source "ChessBase"]
[SourceQuality "1"]
[TimeControl "40/5400+30:1800+30"]

1. c4 {[%emt 0:00:00]} Nf6 {[%emt 0:00:00]} 2. d4 {[%emt 0:00:08]} e6 {[%emt 0:01:12]} 3. Nf3 {[%emt 0:00:31]} d5 {[%emt 0:00:58]} 4. g3 {[%emt 0:01:17]} Be7 {[%emt 0:01:28]} 5. Bg2 {[%emt 0:00:22]} c6 {[%emt 0:00:52]} 6. O-O {[%emt 0:00:37]} O-O {[%emt 0:02:11]} 7. Nc3 {[%emt 0:03:39]} Nbd7 {[%emt 0:02:32]} 8. b3 {[%emt 0:02:42]} b6 {[%emt 0:04:01]} 9. Bb2 {[%emt 0:01:37]} a5 {[%emt 0:01:01]} 10. Rc1 {[%emt 0:02:17]} Ba6 {[%emt 0:02:12]} 11. Ne5 {[%emt 0:05:32]} Nxe5 {[%emt 0:15:29]} 12. dxe5 {[%emt 0:00:12]} Nd7 {[%emt 0:00:09]} 13. Nb1 {[%emt 0:05:56]} Rc8 {[%emt 0:10:45]} 14. Nd2 {[%emt 0:02:42]} Nc5 {[%emt 0:07:29]} 15. Qc2 {[%emt 0:05:39]} Qc7 {[%emt 0:09:49]} 16. Rfd1 {[%emt 0:02:56]} Rfd8 {[%emt 0:05:23]} 17. cxd5 {[%emt 0:03:26]} cxd5 {[%emt 0:05:34]} 18. Bf1 {[%emt 0:08:44]} Qb7 {[%emt 0:03:24]} 19. Qb1 {[%emt 0:01:41]} Rd7 {[%emt 0:04:07]} 20. a3 {[%emt 0:05:28]} Rdc7 {[%emt 0:02:31]} 21. b4 {[%emt 0:11:17]} axb4 {[%emt 0:04:07]} 22. axb4 {[%emt 0:00:06]} Nd7 {[%emt 0:00:19]} 23. Ba3 {[%emt 0:04:54]} Rxc1 {[%emt 0:01:54]} 24. Bxc1 {[%emt 0:00:50]} Qc7 {[%emt 0:02:42]} 25. Nf3 {[%emt 0:04:32]} Qc2 {[%emt 0:02:03]} 26. Bd2 {[%emt 0:05:33]} Qxb1 {[%emt 0:03:36]} 27. Rxb1 {[%emt 0:00:05]} Ra8 {[%emt 0:00:34]} 28. Ra1 {[%emt 0:03:34]} Bb7 {[%emt 0:00:25]} 29. Rc1 {[%emt 0:01:03]} Rc8 {[%emt 0:00:20]} 30. Rxc8+ {[%emt 0:00:20]} Bxc8 {[%emt 0:00:07]} 31. b5 {[%emt 0:01:04]} Bc5 {[%emt 0:01:45]} 32. e3 {[%emt 0:00:46]} Bb7 {[%emt 0:00:57]} 33. Bc3 {[%emt 0:01:57]} d4 {[%emt 0:02:45]} 34. Nxd4 {[%emt 0:01:12]} Nxe5 {[%emt 0:00:12]} 35. Be2 {[%emt 0:00:22]} Bxd4 {[%emt 0:00:53]} 36. Bxd4 {[%emt 0:00:06]} Nd7 {[%emt 0:00:14]} 37. f4 {[%emt 0:02:20]} f6 {[%emt 0:01:09]} 38. Bc4 {[%emt 0:01:41]} Kf7 {[%emt 0:01:38]} 39. f5 {[%emt 0:04:01]} Bd5 {[%emt 0:00:32]} 40. Bxd5 {[%emt 0:00:00]} exd5 {[%emt 0:00:00]} 41. g4 {[%emt 0:02:09]} g5 {[%emt 0:16:47]} 42. fxg6+ {[%emt 0:01:58]} Kxg6 {[%emt 0:02:53]} 43. Kg2 {[%emt 0:00:55]} f5 {[%emt 0:05:12]} 44. Kg3 {[%emt 0:02:23]} fxg4 {[%emt 0:05:35]} 45. Kxg4 {[%emt 0:00:23]} Nf6+ {[%emt 0:01:02]} 46. Kf4 {[%emt 0:01:18]} Kf7 {[%emt 0:02:35]} 47. Bxb6 {[%emt 0:01:33]} Ke6 {[%emt 0:00:21]} 48. Bd4 {[%emt 0:00:22]} Ne4 {[%emt 0:00:12]} 49. b6 {[%emt 0:00:14]} Nd6 {[%emt 0:00:45]} 50. Kg5 {[%emt 0:00:43]} Kd7 {[%emt 0:00:43]} 51. Kh6 {[%emt 0:00:55]} Nf5+ {[%emt 0:00:37]} 52. Kxh7 {[%emt 0:00:09]} Nxd4 {[%emt 0:00:06]} 53. exd4 {[%emt 0:00:04]} Kc6 {[%emt 0:00:06]} 54. b7 {[%emt 0:00:10]} Kxb7 {[%emt 0:00:05]} 55. Kg6 {[%emt 0:00:05]} Kc6 {[%emt 0:00:18]} 56. Kf6 {[%emt 0:00:05]} Kb5 {[%emt 0:00:29]} 57. h4 {[%emt 0:00:07]} Kc4 {[%emt 0:00:12]} 58. Ke5 {[%emt 0:00:05]} Kd3 {[%emt 0:00:13]} 59. h5 {[%emt 0:00:05]} Ke3 {[%emt 0:00:09]} 60. h6 {[%emt 0:00:05] Ke4+} 1-0

[Event "EYCC Girls-U12 2019"]
[Site "Bratislava"]
[Date "2019.08.03"]
[Round "2.5"]
[White "Maria, Lia-Alexandra"]
[Black "Zhapova, Yana"]
[Result "0-1"]
[ECO "D25"]
[WhiteElo "1572"]
[BlackElo "1809"]
[Annotator "NA"]
[PlyCount "90"]
[EventDate "2019.08.02"]
[EventType "swiss"]
[EventCountry "SVK"]
[SourceTitle "playchess.com"]
[Source "ChessBase"]
[SourceQuality "1"]
[TimeControl "40/5400+30:1800+30"]

1. d4 {[%emt 0:00:00]} d5 {[%emt 0:00:00]} 2. c4 {[%emt 0:00:00]} dxc4 {[%emt 0:00:03]} 3. Nf3 {[%emt 0:00:00]} Nf6 {[%emt 0:00:51]} 4. e3 {[%emt 0:00:20]} Bg4 {[%emt 0:01:19]} 5. Bxc4 {[%emt 0:02:18]} e6 {[%emt 0:00:29]} 6. O-O {[%emt 0:00:22]} a6 {[%emt 0:02:09]} 7. a4 {[%emt 0:07:42]} Nc6 {[%emt 0:00:51]} 8. Nc3 {[%emt 0:09:58]} Bd6 {[%emt 0:02:32]} 9. h3 {[%emt 0:03:38]} Bh5 {[%emt 0:04:08]} 10. Be2 {[%emt 0:13:34]} O-O {[%emt 0:04:40]} 11. Re1 {[%emt 0:10:42]} Qe7 {[%emt 0:07:32]} 12. e4 {[%emt 0:06:15]} Bxf3 {[%emt 0:08:32]} 13. Bxf3 {[%emt 0:01:00]} Rad8 {[%emt 0:06:15]} 14. Bg5 {[%emt 0:10:55]} Be5 {[%emt 0:10:16]} 15. Nd5 {[%emt 0:12:15]} exd5 {[%emt 0:00:40]} 16. exd5 {[%emt 0:01:24]} Nxd4 {[%emt 0:06:04]} 17. Qxd4 {[%emt 0:02:32]} Bxd4 {[%emt 0:03:10]} 18. Rxe7 {[%emt 0:00:16]} Nxd5 {[%emt 0:03:13]} 19. Rd1 {[%emt 0:03:48]} f6 {[%emt 0:07:16]} 20. Bxd5+ {[%emt 0:02:35]} Rxd5 {[%emt 0:00:03]} 21. Be3 {[%emt 0:00:23]} Rfd8 {[%emt 0:09:12]} 22. Rxd4 {[%emt 0:01:10]} Rxd4 {[%emt 0:00:10]} 23. Bxd4 {[%emt 0:00:03]} Rxd4 {[%emt 0:00:18]} 24. Rxc7 {[%emt 0:00:05]} Rb4 {[%emt 0:00:16]} 25. Rc8+ {[%emt 0:01:20]} Kf7 {[%emt 0:00:15]} 26. h4 {[%emt 0:01:28]} Rxb2 {[%emt 0:05:17]} 27. h5 {[%emt 0:00:39]} Rb1+ {[%emt 0:04:05]} 28. Kh2 {[%emt 0:00:05]} Re1 {[%emt 0:01:07]} 29. Rc5 {[%emt 0:01:54]} g6 {[%emt 0:04:18]} 30. g4 {[%emt 0:01:51]} Re7 {[%emt 0:03:53]} 31. Rc3 {[%emt 0:02:34]} Ke6 {[%emt 0:01:30]} 32. Re3+ {[%emt 0:01:10]} Kd6 {[%emt 0:00:13]} 33. Rxe7 {[%emt 0:00:40]} Kxe7 {[%emt 0:00:01]} 34. Kg3 {[%emt 0:00:09]} gxh5 {[%emt 0:01:30]} 35. gxh5 {[%emt 0:00:06]} b5 {[%emt 0:00:03]} 36. axb5 {[%emt 0:00:10]} axb5 {[%emt 0:00:01]} 37. Kf4 {[%emt 0:00:10]} Ke6 {[%emt 0:00:14]} 38. Ke4 {[%emt 0:00:22]} b4 {[%emt 0:00:57]} 39. Kd4 {[%emt 0:00:11]} Kf5 {[%emt 0:00:00]} 40. Kc4 {[%emt 0:00:00]} Kg5 {[%emt 0:00:00]} 41. h6 {[%emt 0:01:03]} Kxh6 {[%emt 0:00:38]} 42. Kxb4 {[%emt 0:00:04]} Kg5 {[%emt 0:00:12]} 43. Kc3 {[%emt 0:00:22]} Kf4 {[%emt 0:00:12]} 44. Kd2 {[%emt 0:00:05]} Kf3 {[%emt 0:00:08]} 45. Ke1 {[%emt 0:00:10]} Kg2 {[%emt 0:00:04]} 0-1

[Event "EYCC Girls-U12 2019"]
[Site "Bratislava"]
[Date "2019.08.03"]
[Round "2.6"]
[White "Vlasova, Olesia"]
[Black "Micheli, Elora"]
[Result "1-0"]
[ECO "A04"]
[WhiteElo "1799"]
[BlackElo "1528"]
[Annotator "NA"]
[PlyCount "73"]
[EventDate "2019.08.02"]
[EventType "swiss"]
[EventCountry "SVK"]
[SourceTitle "playchess.com"]
[Source "ChessBase"]
[SourceQuality "1"]
[TimeControl "40/5400+30:1800+30"]

1. Nf3 {[%emt 0:00:00]} c5 {[%emt 0:00:06]} 2. c4 {[%emt 0:00:00]} Nc6 {[%emt 0:01:25]} 3. Nc3 {[%emt 0:00:00]} g6 {[%emt 0:01:21]} 4. e3 {[%emt 0:00:24]} Nf6 {[%emt 0:01:04]} 5. d4 {[%emt 0:00:20]} cxd4 {[%emt 0:02:17]} 6. exd4 {[%emt 0:00:50]} d5 {[%emt 0:00:39]} 7. h3 {[%emt 0:09:48]} Bg7 {[%emt 0:02:02]} 8. Bg5 {[%emt 0:02:08]} Ne4 {[%emt 0:02:43]} 9. cxd5 {[%emt 0:12:41]} Nxc3 {[%emt 0:03:20]} 10. bxc3 {[%emt 0:00:09]} Qxd5 {[%emt 0:00:29]} 11. Be2 {[%emt 0:01:14]} b5 12. O-O {[%emt 0:04:12]} O-O {[%emt 0:05:38]} 13. a4 {[%emt 0:01:01]} Ba6 {[%emt 0:07:20]} 14. Qd3 {[%emt 0:11:59]} Rab8 {[%emt 0:07:33]} 15. Rab1 {[%emt 0:17:57]} Bc8 {[%emt 0:01:30]} 16. Rxb5 {[%emt 0:00:50]} Qd6 {[%emt 0:08:54]} 17. Qe3 {[%emt 0:03:53]} Qd7 {[%emt 0:07:54]} 18. d5 {[%emt 0:02:57]} Rxb5 {[%emt 0:01:01]} 19. dxc6 {[%emt 0:01:43]} Qxc6 {[%emt 0:04:57]} 20. axb5 {[%emt 0:01:37]} Qxc3 {[%emt 0:07:53]} 21. Qxc3 {[%emt 0:01:24]} Bxc3 {[%emt 0:00:02]} 22. Rc1 {[%emt 0:00:15]} Bb4 {[%emt 0:01:35]} 23. Rc7 {[%emt 0:00:31]} f6 {[%emt 0:00:42]} 24. Be3 {[%emt 0:00:11]} Bf5 {[%emt 0:02:07]} 25. Bxa7 {[%emt 0:01:07]} Bd6 {[%emt 0:02:06]} 26. Rc1 {[%emt 0:00:41]} Bb8 {[%emt 0:01:37]} 27. Bxb8 {[%emt 0:00:18]} Rxb8 {[%emt 0:00:03]} 28. Nd4 {[%emt 0:00:13]} Bd7 {[%emt 0:01:28]} 29. Rc7 {[%emt 0:00:11]} Rd8 {[%emt 0:01:29]} 30. Nc6 {[%emt 0:00:12]} Bxc6 {[%emt 0:00:38]} 31. bxc6 {[%emt 0:00:08]} Kf7 {[%emt 0:01:00]} 32. Rd7 {[%emt 0:00:14]} Rc8 {[%emt 0:00:34]} 33. Bb5 {[%emt 0:01:19]} Ke6 {[%emt 0:01:37]} 34. c7 {[%emt 0:00:42]} f5 {[%emt 0:01:23]} 35. f4 {[%emt 0:00:10]} h6 {[%emt 0:00:46]} 36. h4 {[%emt 0:00:07]} h5 {[%emt 0:00:43]} 37. Kh2 {[%emt 0:00:07] Kd5} 1-0